bitfinex-derivatives/quotes_BTCF0:USTF0_20260111
["timestamp","ask_amount","ask_price","bid_price","bid_amount"]
[1768174492374,0.00989426,90834.0,90821.0,0.011025]
[1768174493567,0.00989426,90834.0,90816.0,0.00260697]
[1768174494369,0.00989426,90834.0,90815.0,0.00802748]
[1768174494370,0.00989426,90834.0,90825.0,0.011025]
[1768174497268,0.09368,90838.0,90827.0,0.011025]
[1768174497865,0.00989426,90840.0,90823.0,0.00313525]
[1768174498164,0.09368,90839.0,90826.0,0.00317307]
[1768174498365,0.09368,90839.0,90829.0,0.011025]
[1768174499177,0.09368,90839.0,90827.0,0.011025]
[1768174499363,0.104703,90839.0,90827.0,0.011025]
[1768174499563,0.104703,90839.0,90824.0,0.011025]
[1768174499564,0.011024,90837.0,90824.0,0.011025]
[1768174501266,0.011024,90835.0,90819.0,0.09368]
[1768174501464,0.02091826,90835.0,90820.0,0.00300744]
[1768174502077,0.02091826,90835.0,90822.0,0.011025]
[1768174502262,0.10016753,90833.0,90819.0,0.09368]
[1768174502466,0.09368,90839.0,90798.0,0.00242297]
[1768174502467,0.09027327,90809.0,90798.0,0.00242297]
[1768174502669,0.00989426,90806.0,90787.0,0.06335892]
[1768174502865,0.00989426,90808.0,90787.0,0.07936755]
[1768174503069,0.00989426,90808.0,90788.0,0.06438792]
[1768174503364,0.00989426,90808.0,90794.0,0.011029]
[1768174503768,0.00989426,90808.0,90790.0,0.06438792]
[1768174503968,0.19912186,90815.0,90794.0,0.06448468]
[1768174504373,0.20039184,90815.0,90794.0,0.06448468]
[1768174504577,0.00975602,90814.0,90794.0,0.06448468]
[1768174505477,0.00975602,90814.0,90798.0,0.011028]
[1768174506285,0.11646886,90811.0,90795.0,0.011029]
[1768174506981,0.10544186,90811.0,90790.0,0.07563438]
[1768174507275,0.10544186,90811.0,90799.0,0.011028]
[1768174507876,0.00975602,90811.0,90793.0,0.06573893]
[1768174508384,0.10544186,90831.0,90816.0,0.011026]
[1768174508677,0.00975602,90831.0,90817.0,0.011026]
[1768174508881,0.09568584,90828.0,90807.0,0.15874306]
[1768174509073,0.10544186,90827.0,90807.0,0.15874306]
[1768174509984,0.00975602,90827.0,90808.0,0.06502306]
[1768174510281,0.00975602,90827.0,90809.0,0.06647429]
[1768174511980,0.00975602,90827.0,90813.0,0.011026]
[1768174512298,0.11822412,90826.0,90807.0,0.09372]
[1768174512585,0.00999524,90826.0,90811.0,0.011027]
[1768174513081,0.00999524,90826.0,90815.0,0.011026]
[1768174513282,0.00242217,90828.0,90815.0,0.011026]
[1768174514785,0.00242217,90828.0,90814.0,0.0663039]
[1768174515085,0.09372,90833.0,90816.0,0.0663039]
[1768174516380,0.09372,90833.0,90820.0,0.011026]
[1768174517186,0.10719912,90832.0,90820.0,0.011026]
[1768174519692,0.11822312,90832.0,90818.0,0.011026]
[1768174520884,0.10719912,90832.0,90820.0,0.011026]
[1768174521881,0.10719912,90832.0,90822.0,0.011025]
[1768174522694,0.10719912,90832.0,90819.0,0.011026]
[1768174522897,0.11822312,90832.0,90819.0,0.011026]
[1768174524500,0.11822312,90832.0,90821.0,0.011026]
[1768174524698,0.10719912,90832.0,90821.0,0.011026]
[1768174527404,0.10719912,90832.0,90822.0,0.011025]
[1768174528599,0.10719912,90832.0,90823.0,0.011025]
[1768174531109,0.10719912,90832.0,90821.0,0.011025]
[1768174531305,0.09720388,90830.0,90821.0,0.011025]
[1768174531809,0.10719912,90830.0,90811.0,0.011027]
[1768174532001,0.10719912,90828.0,90819.0,0.011026]
[1768174532207,0.10719912,90828.0,90816.0,0.011026]
[1768174532708,0.10719912,90821.0,90804.0,0.011028]
[1768174532903,0.10719912,90821.0,90810.0,0.011027]
[1768174534909,0.00999524,90821.0,90812.0,0.011027]
[1768174538100,0.00999524,90821.0,90813.0,0.011026]
[1768174538311,0.00999524,90821.0,90815.0,0.011026]
[1768174539414,0.00977833,90831.0,90823.0,0.011025]
[1768174539613,0.02080233,90831.0,90819.0,0.011026]
[1768174539805,0.02080233,90831.0,90810.0,0.09368]
[1768174539806,0.00977833,90827.0,90812.0,0.011027]
[1768174540005,0.00977833,90825.0,90810.0,0.09368]
[1768174540410,0.00977833,90825.0,90815.0,0.011026]
[1768174544719,0.00977833,90825.0,90810.0,0.09368]
[1768174546021,0.011025,90824.0,90810.0,0.09368]
[1768174546321,0.011025,90824.0,90813.0,0.011027]
[1768174546622,0.011026,90822.0,90810.0,0.09368]
[1768174546810,0.09393967,90824.0,90810.0,0.09368]
[1768174547011,0.00977833,90825.0,90813.0,0.011026]
[1768174547211,0.00977833,90823.0,90813.0,0.011026]
[1768174547915,0.09393967,90822.0,90803.0,0.09824427]
[1768174548117,0.09393967,90822.0,90796.0,0.011029]
[1768174548118,0.00977833,90813.0,90806.0,0.011027]
[1768174549010,0.00977833,90813.0,90809.0,0.011027]
[1768174549216,0.09393967,90817.0,90809.0,0.011027]
[1768174549515,0.09393967,90817.0,90808.0,0.011027]
[1768174550021,0.09393967,90817.0,90805.0,0.011027]
[1768174550222,0.09393967,90817.0,90807.0,0.011027]
[1768174551124,0.09393967,90817.0,90809.0,0.011027]
[1768174554226,0.09393967,90817.0,90800.0,0.09368]
[1768174555628,0.09393967,90817.0,90808.0,0.011027]
[1768174556218,0.09393967,90817.0,90805.0,0.011027]
[1768174556730,0.103718,90815.0,90802.0,0.011028]
[1768174556916,0.00977833,90804.0,90797.0,0.05215135]
[1768174557116,0.103718,90809.0,90798.0,0.011028]
[1768174557321,0.114745,90813.0,90800.0,0.011028]
[1768174557525,0.00977833,90810.0,90800.0,0.011028]
[1768174557822,0.09393967,90809.0,90802.0,0.011028]
[1768174558127,0.09372,90814.0,90806.0,0.011027]
[1768174558316,0.09372,90814.0,90803.0,0.011028]
[1768174558725,0.18765967,90814.0,90803.0,0.011028]
[1768174560231,0.09372,90814.0,90805.0,0.011027]
[1768174560530,0.09372,90814.0,90802.0,0.011028]
[1768174560726,0.09372,90814.0,90804.0,0.011028]
[1768174562634,0.103718,90817.0,90800.0,0.15550991]
[1768174562931,0.011026,90821.0,90807.0,0.011027]
[1768174563130,0.011026,90819.0,90807.0,0.011027]
[1768174563327,0.10496567,90819.0,90807.0,0.011027]
[1768174563531,0.09393967,90812.0,90800.0,0.011028]
[1768174563728,0.09393967,90812.0,90801.0,0.011028]
[1768174563935,0.09393967,90812.0,90802.0,0.011028]
[1768174564618,0.10255776,90808.0,90797.0,0.09372]
[1768174564825,0.09309174,90802.0,90784.0,0.00998555]
[1768174565033,0.09309174,90802.0,90788.0,0.09372]
[1768174565234,0.09309174,90802.0,90793.0,0.011029]
[1768174565533,0.00946602,90803.0,90795.0,0.011029]
[1768174565932,0.09309174,90806.0,90795.0,0.011029]
[1768174566635,0.09309174,90806.0,90796.0,0.011029]
[1768174568236,0.09309174,90811.0,90791.0,0.09468493]
[1768174568536,0.09309174,90811.0,90804.0,0.011028]
[1768174570739,0.09309174,90811.0,90801.0,0.011028]
[1768174571037,0.09309174,90811.0,90803.0,0.011028]
[1768174573442,0.00946602,90813.0,90803.0,0.011028]
[1768174574042,0.00946602,90813.0,90804.0,0.011028]
[1768174574245,0.00946602,90813.0,90796.0,0.011029]
[1768174574542,0.09205355,90815.0,90806.0,0.011027]
[1768174576141,0.10135923,90815.0,90803.0,0.011028]
[1768174576536,0.11238523,90815.0,90803.0,0.011028]
[1768174578651,0.10135923,90815.0,90804.0,0.011028]
[1768174579247,0.10135923,90815.0,90805.0,0.011027]
[1768174579742,0.10135923,90815.0,90806.0,0.011027]
[1768174579944,0.10135923,90815.0,90803.0,0.011028]
[1768174580142,0.11238523,90815.0,90803.0,0.011028]
[1768174581133,0.09205355,90823.0,90803.0,0.09633042]
[1768174581333,0.011026,90822.0,90805.0,0.10534777]
[1768174581538,0.18577355,90824.0,90806.0,0.09633042]
[1768174581737,0.011026,90821.0,90805.0,0.00901735]
[1768174581933,0.18577355,90824.0,90805.0,0.00901735]
[1768174581934,0.10307855,90823.0,90810.0,0.011027]
[1768174584439,0.10307855,90823.0,90811.0,0.011027]
[1768174585245,0.13509401,90835.0,90823.0,0.011025]
[1768174585439,0.02032968,90837.0,90824.0,0.011025]
[1768174585640,0.11238323,90837.0,90824.0,0.011025]
[1768174585940,0.11238323,90837.0,90821.0,0.011025]
[1768174586136,0.011024,90833.0,90821.0,0.011025]
[1768174586337,0.011024,90833.0,90820.0,0.15550991]
[1768174586942,0.011024,90833.0,90820.0,0.16653591]
[1768174587448,0.10307755,90833.0,90820.0,0.15550991]
[1768174588739,0.09205355,90833.0,90821.0,0.011026]
[1768174590250,0.09205355,90833.0,90820.0,0.15550991]
[1768174591443,0.09205355,90833.0,90822.0,0.011025]
[1768174594338,0.011024,90835.0,90822.0,0.011025]
[1768174594543,0.10663694,90835.0,90822.0,0.011025]
[1768174595160,0.00928464,90830.0,90818.0,0.09372]
[1768174595347,0.00928464,90830.0,90798.0,0.09900588]
[1768174595348,0.09561294,90819.0,90798.0,0.00242297]
[1768174595550,0.10489758,90817.0,90808.0,0.011027]
[1768174596656,0.09561294,90826.0,90807.0,0.25209282]
[1768174596954,0.09561294,90828.0,90816.0,0.011026]
[1768174598460,0.10489758,90828.0,90816.0,0.011026]
[1768174599058,0.09561294,90826.0,90808.0,0.00962382]
[1768174600053,0.09561294,90826.0,90813.0,0.011027]
[1768174604947,0.09561294,90826.0,90815.0,0.011026]
[1768174608466,0.09561294,90819.0,90805.0,0.09372]
[1768174608657,0.00928464,90820.0,90805.0,0.09372]
[1768174608658,0.09561294,90822.0,90809.0,0.15550991]
[1768174608858,0.10489758,90822.0,90805.0,0.09372]
[1768174610070,0.10489758,90817.0,90805.0,0.09372]
[1768174612161,0.10489758,90817.0,90808.0,0.011027]
[1768174615174,0.10663894,90821.0,90808.0,0.011027]
[1768174615374,0.10489758,90821.0,90805.0,0.09372]
[1768174615573,0.10489758,90821.0,90810.0,0.15550991]
[1768174615977,0.10489758,90821.0,90814.0,0.011026]
[1768174618365,0.10489758,90821.0,90811.0,0.011027]
[1768174618768,0.10489758,90821.0,90810.0,0.15550991]
[1768174618970,0.10489758,90821.0,90811.0,0.011027]
[1768174619669,0.00928464,90815.0,90805.0,0.011027]
[1768174619868,0.09561294,90803.0,90794.0,0.011029]
[1768174620074,0.10489758,90801.0,90791.0,0.09368]
[1768174621180,0.10489758,90799.0,90789.0,0.09368]
[1768174621368,0.10489758,90799.0,90789.0,0.104709]
[1768174621676,0.09561294,90797.0,90788.0,0.09368]
[1768174621875,0.011028,90805.0,90786.0,0.09372]
[1768174621876,0.10489758,90796.0,90786.0,0.09372]
[1768174622178,0.09561294,90799.0,90781.0,0.11013943]
[1768174622368,0.09561294,90790.0,90772.0,0.09372]
[1768174622569,0.02324214,90786.0,90772.0,0.09372]
[1768174622774,0.02324214,90786.0,90775.0,0.011031]
[1768174623079,0.09372,90804.0,90785.0,0.09658291]
[1768174623275,0.01253193,90803.0,90785.0,0.10761291]
[1768174623573,0.00150393,90800.0,90785.0,0.01103]
[1768174624273,0.00150393,90800.0,90787.0,0.01103]
[1768174624773,0.00150393,90796.0,90784.0,0.01103]
[1768174625074,0.01110869,90802.0,90773.0,0.10087262]
[1768174625075,0.00990985,90792.0,90773.0,0.11014004]
[1768174626176,8.069e-05,90802.0,90773.0,0.11014004]
[1768174626177,0.00990985,90791.0,90773.0,0.11014004]
[1768174626480,0.00990985,90787.0,90772.0,0.0266537]
[1768174627079,0.01103,90786.0,90772.0,0.0156227]
[1768174627267,0.00990985,90786.0,90769.0,0.09372]
[1768174627671,0.00990985,90786.0,90769.0,0.1084695]
[1768174627876,0.00990985,90786.0,90772.0,0.011032]
[1768174628080,0.00990985,90786.0,90774.0,0.011031]
[1768174628784,0.00990985,90786.0,90769.0,0.1084695]
[1768174629686,0.00990985,90786.0,90776.0,0.011031]
[1768174630771,0.00910381,90791.0,90776.0,0.011031]
[1768174631582,0.00910381,90790.0,90774.0,0.011031]
[1768174632372,0.00910381,90790.0,90769.0,0.21580638]
[1768174632679,0.00910381,90790.0,90770.0,0.10733688]
[1768174633076,0.00325048,90789.0,90770.0,0.10733688]
[1768174633386,0.00325048,90789.0,90778.0,0.011031]
[1768174634086,0.00325048,90789.0,90775.0,0.011031]
[1768174635083,8.069e-05,90802.0,90786.0,0.00983391]
[1768174635387,8.069e-05,90802.0,90790.0,0.10853197]
[1768174635780,8.069e-05,90802.0,90793.0,0.011029]
[1768174635980,0.09641696,90809.0,90797.0,0.011028]
[1768174636182,0.09641696,90809.0,90793.0,0.011029]
[1768174636579,0.00269696,90807.0,90793.0,0.011029]
[1768174636886,0.01180077,90807.0,90793.0,0.011029]
[1768174637385,0.01180077,90807.0,90792.0,0.011029]
[1768174637688,0.01180077,90807.0,90787.0,0.00983391]
[1768174637689,0.01180077,90807.0,90794.0,0.011029]
[1768174639278,0.01180077,90807.0,90796.0,0.011028]
[1768174642090,0.00547093,90806.0,90787.0,0.10733688]
[1768174642385,0.00547093,90797.0,90779.0,0.09372]
[1768174642582,0.00547093,90796.0,90785.0,0.01103]
[1768174642782,0.00910381,90797.0,90785.0,0.01103]
[1768174643093,0.00547093,90799.0,90789.0,0.011029]
[1768174644089,0.00547093,90799.0,90785.0,0.01103]
[1768174645479,0.00547093,90799.0,90787.0,0.01103]
[1768174648388,0.011028,90802.0,90787.0,0.01103]
[1768174648582,0.01669897,90802.0,90789.0,0.011029]
[1768174649289,0.00910381,90799.0,90782.0,0.01103]
[1768174649490,0.00557805,90794.0,90784.0,0.01103]
[1768174649691,0.00557805,90794.0,90786.0,0.01103]
[1768174649895,0.01468186,90801.0,90788.0,0.01103]
[1768174650093,0.00557805,90800.0,90788.0,0.01103]
[1768174652393,0.00557805,90800.0,90785.0,0.01103]
[1768174652586,0.01660605,90800.0,90786.0,0.01103]
[1768174653296,0.01130158,90805.0,90786.0,0.00983391]
[1768174653495,0.01130158,90805.0,90786.0,0.10733688]
[1768174654386,0.011028,90804.0,90790.0,0.011029]
[1768174654791,0.01130158,90805.0,90786.0,0.11836688]
[1768174654987,0.00910359,90805.0,90786.0,0.01103]
[1768174655388,0.011028,90801.0,90788.0,0.01103]
[1768174656396,0.00850807,90803.0,90785.0,0.01103]
[1768174656601,0.011028,90798.0,90785.0,0.01103]
[1768174656785,0.00850807,90802.0,90782.0,0.11272605]
[1768174657089,0.00850807,90802.0,90779.0,0.09372]
[1768174657090,0.00850807,90799.0,90780.0,0.01103]
[1768174657288,0.00910359,90800.0,90780.0,0.01103]
[1768174657289,0.00865472,90798.0,90780.0,0.01103]
[1768174657793,0.011029,90792.0,90779.0,0.09372]
[1768174657996,0.00865472,90789.0,90772.0,0.09372]
[1768174658193,0.00910359,90791.0,90773.0,0.09201671]
[1768174658700,0.00865472,90794.0,90774.0,0.00967934]
[1768174658895,0.00865472,90797.0,90777.0,0.09201671]
[1768174659200,0.00869205,90794.0,90776.0,0.00967934]
[1768174659897,0.01103,90788.0,90776.0,0.00967934]
[1768174660492,0.00869205,90794.0,90776.0,0.00967934]
[1768174660796,0.01779564,90794.0,90773.0,0.10304771]
[1768174660992,0.01103,90789.0,90773.0,0.10304771]
[1768174661192,0.01103,90789.0,90775.0,0.011031]
[1768174661401,0.01103,90789.0,90775.0,0.10304771]
[1768174661600,0.011029,90792.0,90777.0,0.10304771]
[1768174661802,0.00986739,90796.0,90777.0,0.10304771]
[1768174661996,0.00986739,90796.0,90777.0,0.09201671]
[1768174662586,0.01103,90788.0,90774.0,0.10304771]
[1768174663001,0.011029,90791.0,90774.0,0.11272705]
[1768174663202,0.01103,90789.0,90774.0,0.11272705]
[1768174664602,0.011029,90792.0,90776.0,0.10304771]
[1768174665704,0.011029,90792.0,90776.0,0.11272705]
[1768174666103,0.011029,90792.0,90777.0,0.011031]
[1768174668106,0.011029,90792.0,90776.0,0.11272705]
[1768174668507,0.011029,90792.0,90778.0,0.011031]
[1768174669803,0.011029,90794.0,90780.0,0.011031]
[1768174669997,0.00986739,90796.0,90780.0,0.011031]
[1768174671414,0.011029,90793.0,90780.0,0.011031]
[1768174672505,0.011029,90795.0,90783.0,0.00967934]
[1768174672808,0.011029,90795.0,90783.0,0.10169605]
[1768174673108,0.011029,90795.0,90784.0,0.10169605]
[1768174675813,0.09372,90799.0,90792.0,0.09201671]
[1768174676114,0.011028,90799.0,90792.0,0.09201671]
[1768174676415,0.011029,90797.0,90789.0,0.09201671]
[1768174676605,0.011029,90797.0,90786.0,0.09201671]
[1768174677006,0.011028,90799.0,90786.0,0.10169605]
[1768174677206,0.011028,90799.0,90787.0,0.10169605]
[1768174678208,0.011028,90798.0,90787.0,0.10169605]
[1768174678409,0.011029,90795.0,90787.0,0.00967934]
[1768174678716,0.00784262,90797.0,90776.0,0.19541605]
[1768174678914,0.09372,90802.0,90789.0,0.10169605]
[1768174679115,0.011029,90796.0,90789.0,0.00967934]
[1768174679414,0.011029,90794.0,90785.0,0.09201671]
[1768174679613,0.011029,90794.0,90783.0,0.00967934]
[1768174679803,0.011029,90797.0,90785.0,0.09201671]
[1768174681214,0.011028,90800.0,90785.0,0.10169605]
[1768174681616,0.011028,90800.0,90785.0,0.11272605]
[1768174681816,0.011028,90798.0,90785.0,0.10169605]
[1768174682017,0.09372,90802.0,90785.0,0.11272605]
[1768174683420,0.011028,90799.0,90785.0,0.11272605]
[1768174684915,0.011028,90798.0,90785.0,0.10169605]
[1768174685218,0.09372,90802.0,90785.0,0.10169605]
[1768174685419,0.155587,90800.0,90785.0,0.10169605]
[1768174685622,0.011029,90797.0,90785.0,0.10169605]
[1768174685916,0.155587,90800.0,90785.0,0.00967934]
[1768174686118,0.011029,90794.0,90785.0,0.00967934]
[1768174687717,0.155587,90795.0,90776.0,0.18910051]
[1768174687921,0.155587,90790.0,90777.0,0.011031]
[1768174688422,0.155587,90790.0,90778.0,0.011031]
[1768174692722,0.011029,90795.0,90777.0,0.09538051]
[1768174693026,0.011029,90797.0,90787.0,0.09092474]
[1768174693209,0.09372,90796.0,90787.0,0.09092474]
[1768174693925,0.09372,90796.0,90786.0,0.00968403]
[1768174696726,0.09372,90796.0,90787.0,0.01103]
[1768174701130,0.09372,90796.0,90788.0,0.011029]
[1768174703926,0.09372,90796.0,90785.0,0.01103]
[1768174705138,0.09372,90796.0,90784.0,0.09092474]
[1768174705139,0.011029,90795.0,90784.0,0.09092474]
[1768174705324,0.011029,90795.0,90783.0,0.01103]
[1768174705937,0.011029,90795.0,90784.0,0.01103]
[1768174706241,0.011029,90795.0,90783.0,0.01103]
[1768174706938,0.011029,90793.0,90781.0,0.11163877]
[1768174708339,0.011029,90795.0,90782.0,0.01103]
[1768174708837,0.011029,90795.0,90781.0,0.10060877]
[1768174709041,0.09372,90796.0,90784.0,0.01103]
[1768174710341,0.09372,90796.0,90785.0,0.01103]
[1768174710942,0.011029,90795.0,90783.0,0.01103]
[1768174711839,0.09372,90796.0,90782.0,0.10060877]
[1768174712144,0.09372,90796.0,90786.0,0.01103]
[1768174713135,0.01671748,90805.0,90786.0,0.09092474]
[1768174713441,0.09372,90806.0,90788.0,0.09092474]
[1768174713628,0.011028,90804.0,90788.0,0.09092474]
[1768174713833,0.09372,90806.0,90788.0,0.09092474]
[1768174714034,0.02856643,90805.0,90788.0,0.09092474]
[1768174714237,0.09372,90806.0,90788.0,0.09092474]
[1768174714238,0.10106242,90806.0,90788.0,0.09092474]
[1768174714431,0.02856566,90805.0,90788.0,0.09092474]
[1768174714635,0.10106242,90806.0,90788.0,0.09092474]
[1768174714836,0.0285657,90805.0,90788.0,0.09092474]
[1768174715049,0.011028,90801.0,90788.0,0.09092474]
[1768174715349,0.011029,90795.0,90781.0,0.01103]
[1768174716029,0.155587,90791.0,90779.0,0.011031]
[1768174716228,0.011029,90795.0,90780.0,0.01103]
[1768174717645,0.011029,90795.0,90782.0,0.01103]
[1768174718042,0.011028,90798.0,90782.0,0.01103]
[1768174718739,0.011028,90798.0,90783.0,0.01103]
[1768174720950,0.17236412,90800.0,90786.0,0.01103]
[1768174723349,0.17236412,90800.0,90780.0,0.11472178]
[1768174723546,0.17236412,90800.0,90782.0,0.09388775]
[1768174723752,0.17236412,90800.0,90788.0,0.011029]
[1768174724050,0.16252592,90800.0,90786.0,0.01103]
[1768174724749,0.011028,90801.0,90782.0,0.09388775]
[1768174724750,0.011028,90801.0,90787.0,0.01103]
[1768174725049,0.155587,90800.0,90788.0,0.011029]
[1768174725250,0.011028,90799.0,90785.0,0.01103]
[1768174725653,0.011028,90799.0,90786.0,0.01103]
[1768174726955,0.155587,90800.0,90786.0,0.01103]
[1768174727452,0.155587,90800.0,90784.0,0.01103]
[1768174728150,0.011029,90797.0,90784.0,0.01103]
[1768174728454,0.155587,90800.0,90783.0,0.09388775]
[1768174728651,0.155587,90800.0,90789.0,0.011029]
[1768174729755,0.09372,90806.0,90778.0,0.09372]
[1768174729756,0.0098382,90815.0,90796.0,0.011029]
[1768174729947,0.09372,90809.0,90796.0,0.011029]
[1768174730651,0.09372,90809.0,90798.0,0.011028]
[1768174731349,0.011026,90819.0,90803.0,0.011028]
[1768174731649,0.09372,90817.0,90805.0,0.011027]
[1768174732058,0.09372,90817.0,90801.0,0.10369178]
[1768174732556,0.09372,90817.0,90805.0,0.011027]
[1768174734352,0.09372,90817.0,90802.0,0.011028]
[1768174736658,0.09372,90817.0,90804.0,0.011028]
[1768174737755,0.09372,90817.0,90801.0,0.10369178]
[1768174737954,0.09372,90817.0,90803.0,0.09388775]
[1768174738656,0.09372,90817.0,90802.0,0.00980403]
[1768174738960,0.104746,90817.0,90802.0,0.00980403]
[1768174739960,0.0018469,90816.0,90797.0,0.10369178]
[1768174740163,0.011027,90809.0,90795.0,0.011029]
[1768174740663,0.011027,90809.0,90792.0,0.00980403]
[1768174741157,0.011028,90804.0,90791.0,0.011029]
[1768174741859,0.011028,90804.0,90791.0,0.09372]
[1768174742159,0.00261342,90803.0,90783.0,0.09388775]
[1768174742346,0.011029,90797.0,90784.0,0.09372]
[1768174742549,0.00590491,90797.0,90784.0,0.09372]
[1768174742753,0.00261342,90797.0,90782.0,0.09372]
[1768174743062,0.00277177,90810.0,90788.0,0.10369178]
[1768174743362,0.011028,90801.0,90789.0,0.10369178]
[1768174743566,0.011028,90804.0,90789.0,0.10369178]
[1768174744855,0.10751877,90807.0,90789.0,0.10369178]
[1768174745069,0.09649177,90807.0,90789.0,0.10369178]
[1768174745369,0.09649177,90807.0,90789.0,0.00980403]
[1768174745370,0.011028,90803.0,90789.0,0.00980403]
[1768174745661,0.011028,90803.0,90786.0,0.09278335]
[1768174745861,0.011028,90803.0,90787.0,0.01103]
[1768174746366,0.011028,90801.0,90787.0,0.01103]
[1768174746664,0.00242472,90797.0,90782.0,0.09372]
[1768174747158,0.00663731,90800.0,90786.0,0.01103]
[1768174747364,0.011028,90803.0,90788.0,0.01103]
[1768174748660,0.011027,90806.0,90783.0,0.10273645]
[1768174748859,0.011027,90806.0,90789.0,0.011029]
[1768174749066,0.104747,90807.0,90789.0,0.011029]
[1768174749254,0.011028,90805.0,90789.0,0.011029]
[1768174749965,0.011028,90805.0,90791.0,0.011029]
[1768174751756,0.09372,90807.0,90792.0,0.011029]
[1768174751955,0.09372,90807.0,90788.0,0.10273645]
[1768174752467,0.011028,90806.0,90791.0,0.011029]
[1768174753966,0.011028,90806.0,90789.0,0.011029]
[1768174754162,0.011028,90806.0,90788.0,0.0099531]
[1768174754367,0.011028,90806.0,90790.0,0.011029]
[1768174755364,0.011028,90804.0,90788.0,0.0209831]
[1768174755567,0.011028,90802.0,90787.0,0.01103]
[1768174755767,0.011028,90804.0,90789.0,0.011029]
[1768174758066,0.011028,90803.0,90789.0,0.011029]
[1768174760663,0.09372,90807.0,90787.0,0.10472882]
[1768174760868,0.09372,90807.0,90788.0,0.00935884]
[1768174761261,0.011028,90801.0,90788.0,0.00935884]
[1768174761668,0.011028,90801.0,90789.0,0.00935884]
[1768174762154,0.011028,90800.0,90789.0,0.00935884]
[1768174762660,0.011028,90803.0,90789.0,0.00935884]
[1768174763357,0.09372,90807.0,90790.0,0.011029]
[1768174763358,0.011028,90804.0,90790.0,0.011029]
[1768174764971,0.09372,90807.0,90789.0,0.00935884]
[1768174765665,0.011028,90798.0,90789.0,0.00935884]
[1768174766170,0.011029,90796.0,90789.0,0.00935884]
[1768174766378,0.011029,90794.0,90784.0,0.00935884]
[1768174766669,0.011029,90797.0,90785.0,0.00935884]
[1768174767057,0.011028,90799.0,90785.0,0.00935884]
[1768174767577,0.00955476,90806.0,90785.0,0.00935884]
[1768174767871,0.011028,90799.0,90786.0,0.00935884]
[1768174768073,0.011028,90798.0,90786.0,0.00935884]
[1768174768671,0.011029,90797.0,90786.0,0.00935884]
[1768174769064,0.011028,90799.0,90786.0,0.00935884]
[1768174770674,0.011028,90799.0,90787.0,0.00935884]
[1768174775978,0.011028,90799.0,90785.0,0.01103]
[1768174775979,0.011029,90795.0,90782.0,0.09147284]
[1768174776179,0.09372,90809.0,90781.0,0.01103]
[1768174776180,0.011029,90794.0,90783.0,0.09372]
[1768174777078,0.011028,90801.0,90783.0,0.1036232]
[1768174777274,0.0099996,90808.0,90786.0,0.0099032]
[1768174777469,0.011029,90797.0,90786.0,0.0099032]
[1768174780584,0.011029,90796.0,90786.0,0.0099032]
[1768174780782,0.011029,90796.0,90783.0,0.09372]
[1768174780981,0.011028,90799.0,90783.0,0.10475]
[1768174781182,0.0099996,90805.0,90784.0,0.0099032]
[1768174781990,0.011029,90795.0,90784.0,0.0099032]
[1768174782885,0.011028,90803.0,90784.0,0.0099032]
[1768174783070,0.13804225,90809.0,90781.0,0.01103]
[1768174783071,0.011029,90797.0,90781.0,0.01103]
[1768174783381,0.0099996,90799.0,90779.0,0.104751]
[1768174783584,0.011029,90794.0,90780.0,0.01103]
[1768174783882,0.011029,90795.0,90780.0,0.01103]
[1768174784078,0.0099996,90799.0,90779.0,0.09372]
[1768174784280,0.011029,90790.0,90779.0,0.09372]
[1768174784887,0.011029,90792.0,90779.0,0.09372]
[1768174786389,0.011029,90792.0,90779.0,0.104751]
[1768174787081,0.011029,90790.0,90776.0,0.0209342]
[1768174787383,0.01103,90789.0,90779.0,0.0099032]
[1768174787590,0.011029,90792.0,90779.0,0.0099032]
[1768174792491,0.00019777,90798.0,90779.0,0.0099032]
[1768174792784,0.011028,90799.0,90783.0,0.0099032]
[1768174792975,0.09372,90800.0,90783.0,0.0099032]
[1768174793177,0.09372,90800.0,90783.0,0.0209332]
[1768174793178,0.011028,90797.0,90783.0,0.0209332]
[1768174797089,0.011028,90799.0,90784.0,0.01103]
[1768174798388,0.011029,90797.0,90784.0,0.01103]
[1768174798690,0.011029,90796.0,90783.0,0.0099032]
[1768174799076,0.011029,90794.0,90783.0,0.0099032]
[1768174799683,0.011029,90792.0,90783.0,0.0099032]
[1768174801387,0.011029,90790.0,90783.0,0.0099032]
[1768174801695,0.011029,90790.0,90779.0,0.0099032]
[1768174801884,0.011029,90790.0,90780.0,0.0099032]
[1768174802085,0.011029,90792.0,90780.0,0.0099032]
[1768174802484,0.09372,90800.0,90780.0,0.0099032]
[1768174802679,0.011028,90798.0,90774.0,0.0099032]
[1768174802894,0.011028,90798.0,90772.0,0.09372]
[1768174802895,0.01103,90785.0,90772.0,0.09372]
[1768174803094,0.0099996,90791.0,90769.0,0.1183727]
[1768174803287,0.01103,90781.0,90769.0,0.1183727]
[1768174803886,0.011031,90775.0,90759.0,0.104753]
[1768174804193,0.08927361,90778.0,90761.0,0.011033]
[1768174804194,0.011031,90778.0,90761.0,0.011033]
[1768174804399,0.011031,90780.0,90759.0,0.10824075]
[1768174804787,0.08927361,90783.0,90759.0,0.10824075]
[1768174804990,0.08927361,90783.0,90767.0,0.011032]
[1768174805287,0.05288834,90787.0,90759.0,0.10824075]
[1768174805288,0.04394666,90787.0,90773.0,0.011031]
[1768174805487,0.05497666,90787.0,90763.0,0.011033]
[1768174805892,0.05497666,90787.0,90773.0,0.011031]
[1768174806087,0.05485013,90787.0,90773.0,0.011031]
[1768174806295,0.01103,90787.0,90772.0,0.011032]
[1768174806492,0.01103,90785.0,90771.0,0.10877939]
[1768174806688,0.08930103,90786.0,90768.0,0.011032]
[1768174806889,0.08930103,90786.0,90768.0,0.11065599]
[1768174807289,0.01103,90785.0,90769.0,0.011032]
[1768174807595,0.08930103,90786.0,90768.0,0.09962399]
[1768174809497,0.01103,90785.0,90771.0,0.011032]
[1768174809791,0.04401907,90787.0,90768.0,0.09962399]
[1768174809992,0.09372,90793.0,90783.0,0.10926715]
[1768174810193,0.011028,90798.0,90783.0,0.11909336]
[1768174810492,0.09372,90797.0,90784.0,0.10926715]
[1768174810887,0.104749,90797.0,90784.0,0.09823715]
[1768174811091,0.09372,90797.0,90790.0,0.011029]
[1768174811602,0.09372,90797.0,90787.0,0.01103]